[Event "Titled Tuesday Blitz April 11 Early 2023"]
[White "Doctoorx"]
[Black "Zakhartsov, Vladimir"]
[BlackFideId "4145097"]
[WhiteElo "2431"]
[BlackElo "2497"]
[Result "0-1"]
[Round "02"]
[TimeControl "180+2"]
[Date "2023.04.11"]
[WhiteClock "0:00:30"]
[BlackClock "0:01:16"]

1. Nf3 {[%clk 0:03:00]}  g6 {[%clk 0:02:59]} 2. g3 {[%clk 0:02:59]}  Bg7 {[%clk 0:03:00]} 3. Bg2 {[%clk 0:03:00]}  c6 {[%clk 0:03:00]} 4. O-O {[%clk 0:03:00]}  d5 {[%clk 0:03:01]} 5. d3 {[%clk 0:03:00]}  e5 {[%clk 0:03:01]} 6. Nbd2 {[%clk 0:03:00]}  Ne7 {[%clk 0:03:02]} 7. e4 {[%clk 0:02:59]}  O-O {[%clk 0:03:02]} 8. Re1 {[%clk 0:02:59]}  dxe4 {[%clk 0:03:02]} 9. dxe4 {[%clk 0:02:59]}  h6 {[%clk 0:03:02]} 10. b3 {[%clk 0:02:55]}  Be6 {[%clk 0:03:02]} 11. Bb2 {[%clk 0:02:55]}  Qc7 {[%clk 0:03:02]} 12. Qe2 {[%clk 0:02:55]}  Nd7 {[%clk 0:03:01]} 13. Rad1 {[%clk 0:02:54]}  b6 {[%clk 0:02:29]} 14. Nc4 {[%clk 0:02:45]}  b5 {[%clk 0:02:23]} 15. Ne3 {[%clk 0:02:10]}  a5 {[%clk 0:02:21]} 16. c4 {[%clk 0:01:55]}  b4 {[%clk 0:02:17]} 17. Nc2 {[%clk 0:01:34]}  Rfb8 {[%clk 0:02:01]} 18. Qd2 {[%clk 0:01:28]}  Nc5 {[%clk 0:01:58]} 19. Qd6 {[%clk 0:01:23]}  Qxd6 {[%clk 0:01:54]} 20. Rxd6 {[%clk 0:01:24]}  a4 {[%clk 0:01:45]} 21. Bxe5 {[%clk 0:00:58]}  axb3 {[%clk 0:01:30]} 22. axb3 {[%clk 0:00:49]}  Bxe5 {[%clk 0:01:26]} 23. Nxe5 {[%clk 0:00:49]}  Nxb3 {[%clk 0:01:27]} 24. Nxc6 {[%clk 0:00:43]}  Nxc6 {[%clk 0:01:26]} 25. Rxc6 {[%clk 0:00:43]}  Na5 {[%clk 0:01:24]} 26. Rc5 {[%clk 0:00:34]}  b3 {[%clk 0:01:16]} 27. Ne3 {[%clk 0:00:30]}  b2 {[%clk 0:01:15]} 28. Rb1 {[%clk 0:00:30]}  Nb3 {[%clk 0:01:16]} 0-1


[Site "https://www.chess.com"]

[Event "Titled Tuesday Blitz April 11 Early 2023"]
[White "Khanin, Semen"]
[Black "Hadzimanolis, Antonios"]
[WhiteFideId "4111990"]
[BlackFideId "4202813"]
[WhiteElo "2458"]
[BlackElo "2242"]
[Result "0-1"]
[Round "02"]
[TimeControl "180+2"]
[Date "2023.04.11"]
[WhiteClock "0:00:09"]
[BlackClock "0:00:40"]

1. d4 {[%clk 0:02:52]}  d5 {[%clk 0:02:59]} 2. Nf3 {[%clk 0:02:52]}  Nf6 {[%clk 0:02:58]} 3. Bf4 {[%clk 0:02:52]}  e6 {[%clk 0:02:56]} 4. e3 {[%clk 0:02:53]}  c5 {[%clk 0:02:55]} 5. Nbd2 {[%clk 0:02:53]}  Nc6 {[%clk 0:02:55]} 6. c3 {[%clk 0:02:52]}  Bd6 {[%clk 0:02:54]} 7. Bd3 {[%clk 0:02:52]}  O-O {[%clk 0:02:50]} 8. O-O {[%clk 0:02:52]}  Bxf4 {[%clk 0:02:42]} 9. exf4 {[%clk 0:02:53]}  cxd4 {[%clk 0:02:42]} 10. cxd4 {[%clk 0:02:52]}  Qb6 {[%clk 0:02:42]} 11. Nb3 {[%clk 0:02:50]}  Bd7 {[%clk 0:02:41]} 12. Qd2 {[%clk 0:02:46]}  Rac8 {[%clk 0:02:41]} 13. Rac1 {[%clk 0:02:46]}  Nb4 {[%clk 0:02:31]} 14. Bb1 {[%clk 0:02:43]}  Ne4 {[%clk 0:02:29]} 15. Qe3 {[%clk 0:02:40]}  Bb5 {[%clk 0:02:29]} 16. Rfe1 {[%clk 0:02:38]}  Nd6 {[%clk 0:02:25]} 17. Nc5 {[%clk 0:02:32]}  Nf5 {[%clk 0:02:19]} 18. Qa3 {[%clk 0:02:15]}  Na6 {[%clk 0:02:10]} 19. Bxf5 {[%clk 0:02:03]}  exf5 {[%clk 0:02:10]} 20. Ne5 {[%clk 0:02:01]}  Nxc5 {[%clk 0:02:03]} 21. dxc5 {[%clk 0:01:54]}  Qa6 {[%clk 0:01:59]} 22. Qxa6 {[%clk 0:01:53]}  Bxa6 {[%clk 0:02:00]} 23. Nf3 {[%clk 0:01:50]}  Rfe8 {[%clk 0:01:57]} 24. Nd4 {[%clk 0:01:41]}  Re4 {[%clk 0:01:50]} 25. Rxe4 {[%clk 0:01:09]}  fxe4 {[%clk 0:01:51]} 26. b4 {[%clk 0:01:09]}  Bc4 {[%clk 0:01:48]} 27. a4 {[%clk 0:01:08]}  a5 {[%clk 0:01:44]} 28. bxa5 {[%clk 0:01:05]}  Rxc5 {[%clk 0:01:44]} 29. Nb3 {[%clk 0:00:53]}  Rc6 {[%clk 0:01:40]} 30. Nd4 {[%clk 0:00:51]}  Rc5 {[%clk 0:01:35]} 31. h4 {[%clk 0:00:38]}  Rxa5 {[%clk 0:01:34]} 32. Rb1 {[%clk 0:00:38]}  Ba6 {[%clk 0:01:31]} 33. Rb4 {[%clk 0:00:38]}  g6 {[%clk 0:01:30]} 34. g4 {[%clk 0:00:32]}  Rc5 {[%clk 0:01:26]} 35. Rb6 {[%clk 0:00:18]}  Rc4 {[%clk 0:01:24]} 36. Nb3 {[%clk 0:00:17]}  Rxa4 {[%clk 0:01:23]} 37. Nc5 {[%clk 0:00:18]}  Ra1+ {[%clk 0:01:19]} 38. Kh2 {[%clk 0:00:18]}  Be2 {[%clk 0:01:17]} 39. Nd7 {[%clk 0:00:15]}  Bxg4 {[%clk 0:01:15]} 40. Nf6+ {[%clk 0:00:15]}  Kg7 {[%clk 0:01:15]} 41. Nxg4 {[%clk 0:00:15]}  d4 {[%clk 0:01:12]} 42. Rxb7 {[%clk 0:00:15]}  d3 {[%clk 0:01:12]} 43. Rd7 {[%clk 0:00:13]}  Kf8 {[%clk 0:01:08]} 44. Ne5 {[%clk 0:00:13]}  f6 {[%clk 0:01:08]} 45. Ng4 {[%clk 0:00:13]}  f5 {[%clk 0:01:07]} 46. Ne3 {[%clk 0:00:13]}  Re1 {[%clk 0:01:01]} 47. h5 {[%clk 0:00:12]}  gxh5 {[%clk 0:01:00]} 48. Nxf5 {[%clk 0:00:11]}  Re2 {[%clk 0:00:59]} 49. Kg3 {[%clk 0:00:12]}  d2 {[%clk 0:00:58]} 50. Ne3 {[%clk 0:00:12]}  h4+ {[%clk 0:00:57]} 51. Kxh4 {[%clk 0:00:11]}  Rxf2 {[%clk 0:00:57]} 52. Kg5 {[%clk 0:00:11]}  h5 {[%clk 0:00:54]} 53. f5 {[%clk 0:00:11]}  Rf3 {[%clk 0:00:53]} 54. Nc4 {[%clk 0:00:11]}  e3 {[%clk 0:00:52]} 55. Kf6 {[%clk 0:00:10]}  Ke8 {[%clk 0:00:51]} 56. Ne5 {[%clk 0:00:10]}  e2 {[%clk 0:00:45]} 57. Rh7 {[%clk 0:00:09]}  Rxf5+ {[%clk 0:00:43]} 58. Kxf5 {[%clk 0:00:09]}  e1=Q {[%clk 0:00:43]} 59. Ke6 {[%clk 0:00:10]}  Kd8 {[%clk 0:00:40]} 60. Rh8+ {[%clk 0:00:09]}  Kc7 {[%clk 0:00:41]} 61. Rxh5 {[%clk 0:00:09]}  d1=Q {[%clk 0:00:40]} 0-1


[Site "https://www.chess.com"]

[Event "Titled Tuesday Blitz April 11 Early 2023"]
[White "Harsh Suresh"]
[Black "Bas Mas, Jose Joaquin"]
[WhiteFideId "45018464"]
[BlackFideId "22219064"]
[WhiteElo "2227"]
[BlackElo "2233"]
[Result "1-0"]
[Round "02"]
[TimeControl "180+2"]
[Date "2023.04.11"]
[WhiteClock "0:00:16"]
[BlackClock "0:00:11"]

1. e4 {[%clk 0:03:00]}  e6 {[%clk 0:02:59]} 2. d3 {[%clk 0:03:00]}  d5 {[%clk 0:03:00]} 3. Nd2 {[%clk 0:03:01]}  c5 {[%clk 0:03:00]} 4. Ngf3 {[%clk 0:02:59]}  Nc6 {[%clk 0:03:00]} 5. g3 {[%clk 0:03:00]}  Nge7 {[%clk 0:03:01]} 6. Bg2 {[%clk 0:03:00]}  g6 {[%clk 0:03:01]} 7. O-O {[%clk 0:03:00]}  Bg7 {[%clk 0:03:02]} 8. Re1 {[%clk 0:03:01]}  b6 {[%clk 0:03:03]} 9. e5 {[%clk 0:03:01]}  Qc7 {[%clk 0:03:03]} 10. Qe2 {[%clk 0:03:01]}  g5 {[%clk 0:03:03]} 11. g4 {[%clk 0:02:54]}  Ng6 {[%clk 0:02:57]} 12. Nf1 {[%clk 0:02:53]}  h6 {[%clk 0:02:49]} 13. Ng3 {[%clk 0:02:44]}  Bxe5 {[%clk 0:02:30]} 14. Nxe5 {[%clk 0:02:33]}  Qxe5 {[%clk 0:02:28]} 15. Qd1 {[%clk 0:02:29]}  Qd6 {[%clk 0:02:13]} 16. c4 {[%clk 0:02:05]}  Nce7 {[%clk 0:01:43]} 17. cxd5 {[%clk 0:02:04]}  Nxd5 {[%clk 0:01:44]} 18. d4 {[%clk 0:01:46]}  O-O {[%clk 0:01:36]} 19. Ne4 {[%clk 0:01:39]}  Qe7 {[%clk 0:01:29]} 20. dxc5 {[%clk 0:01:39]}  bxc5 {[%clk 0:01:23]} 21. b3 {[%clk 0:01:39]}  Ngf4 {[%clk 0:01:16]} 22. Bb2 {[%clk 0:01:36]}  f6 {[%clk 0:01:13]} 23. Ng3 {[%clk 0:01:31]}  Nxg2 {[%clk 0:01:10]} 24. Kxg2 {[%clk 0:01:30]}  Nf4+ {[%clk 0:01:11]} 25. Kg1 {[%clk 0:01:29]}  Bb7 {[%clk 0:01:11]} 26. Qc2 {[%clk 0:01:12]}  Rad8 {[%clk 0:00:56]} 27. Re3 {[%clk 0:01:08]}  Ba8 {[%clk 0:00:41]} 28. Rae1 {[%clk 0:00:55]}  Qf7 {[%clk 0:00:32]} 29. Ne4 {[%clk 0:00:38]}  e5 {[%clk 0:00:29]} 30. Ng3 {[%clk 0:00:30]}  Rd5 {[%clk 0:00:20]} 31. Nf5 {[%clk 0:00:28]}  Qh7 {[%clk 0:00:20]} 32. Qc4 {[%clk 0:00:25]}  Rd8 {[%clk 0:00:19]} 33. h4 {[%clk 0:00:21]}  Kf8 {[%clk 0:00:18]} 34. h5 {[%clk 0:00:20]}  Qb7 {[%clk 0:00:17]} 35. f3 {[%clk 0:00:19]}  Nh3+ {[%clk 0:00:12]} 36. Kh2 {[%clk 0:00:19]}  Nf4 {[%clk 0:00:12]} 37. Kg1 {[%clk 0:00:17]}  Rd2 {[%clk 0:00:13]} 38. Qxc5+ {[%clk 0:00:16]}  Ke8 {[%clk 0:00:12]} 39. Rxe5+ {[%clk 0:00:15]}  fxe5 {[%clk 0:00:10]} 40. Rxe5+ {[%clk 0:00:16]}  Kd7 {[%clk 0:00:11]} 41. Re7# {[%clk 0:00:16]} 1-0


[Site "https://www.chess.com"]

[Event "Titled Tuesday Blitz April 11 Early 2023"]
[White "Hambleton, Aman"]
[Black "Sargissyan, Sargis"]
[WhiteFideId "2606577"]
[BlackFideId "13303210"]
[WhiteElo "2511"]
[BlackElo "2109"]
[Result "1-0"]
[Round "02"]
[TimeControl "180+2"]
[Date "2023.04.11"]
[WhiteClock "0:00:03"]
[BlackClock "0:00:06"]

1. d4 {[%clk 0:03:00]}  Nf6 {[%clk 0:02:58]} 2. c4 {[%clk 0:02:56]}  g6 {[%clk 0:02:59]} 3. Nc3 {[%clk 0:02:54]}  d5 {[%clk 0:02:59]} 4. cxd5 {[%clk 0:02:54]}  Nxd5 {[%clk 0:02:59]} 5. Bd2 {[%clk 0:02:53]}  Bg7 {[%clk 0:02:59]} 6. e4 {[%clk 0:02:53]}  Nb6 {[%clk 0:02:59]} 7. Be3 {[%clk 0:02:53]}  O-O {[%clk 0:02:50]} 8. h3 {[%clk 0:02:43]}  Nc6 {[%clk 0:02:44]} 9. Nf3 {[%clk 0:02:42]}  e5 {[%clk 0:02:39]} 10. d5 {[%clk 0:02:36]}  Ne7 {[%clk 0:02:31]} 11. a4 {[%clk 0:02:31]}  f5 {[%clk 0:02:11]} 12. Qb3 {[%clk 0:02:17]}  Kh8 {[%clk 0:02:01]} 13. Rd1 {[%clk 0:01:23]}  fxe4 {[%clk 0:01:51]} 14. Ng5 {[%clk 0:01:19]}  Nf5 {[%clk 0:01:49]} 15. Ncxe4 {[%clk 0:00:09]}  Nxe3 {[%clk 0:01:25]} 16. fxe3 {[%clk 0:00:09]}  Bf5 {[%clk 0:01:19]} 17. a5 {[%clk 0:00:03]}  Bxe4 {[%clk 0:01:09]} 18. Nxe4 {[%clk 0:00:02]}  Qh4+ {[%clk 0:01:04]} 19. Kd2 {[%clk 0:00:02]}  Qxe4 {[%clk 0:00:43]} 20. axb6 {[%clk 0:00:02]}  Rf2+ {[%clk 0:00:43]} 21. Ke1 {[%clk 0:00:02]}  Qh4 {[%clk 0:00:33]} 22. Rd2 {[%clk 0:00:02]}  Raf8 {[%clk 0:00:29]} 23. Rxf2 {[%clk 0:00:02]}  Qxf2+ {[%clk 0:00:28]} 24. Kd1 {[%clk 0:00:03]}  axb6 {[%clk 0:00:28]} 25. Be2 {[%clk 0:00:03]}  Qxg2 {[%clk 0:00:25]} 26. Re1 {[%clk 0:00:03]}  Bh6 {[%clk 0:00:17]} 27. Qd3 {[%clk 0:00:03]}  Rd8 {[%clk 0:00:15]} 28. e4 {[%clk 0:00:03]}  Qg5 {[%clk 0:00:14]} 29. Kc2 {[%clk 0:00:03]}  c6 {[%clk 0:00:14]} 30. Rd1 {[%clk 0:00:02]}  cxd5 {[%clk 0:00:14]} 31. exd5 {[%clk 0:00:03]}  Bg7 {[%clk 0:00:12]} 32. Qe4 {[%clk 0:00:03]}  Qg3 {[%clk 0:00:12]} 33. Bg4 {[%clk 0:00:02]}  Qf2+ {[%clk 0:00:12]} 34. Kb1 {[%clk 0:00:01]}  Qc5 {[%clk 0:00:12]} 35. Qd3 {[%clk 0:00:01]}  Rd6 {[%clk 0:00:12]} 36. Qe4 {[%clk 0:00:01]}  h5 {[%clk 0:00:12]} 37. Be2 {[%clk 0:00:01]}  Kh7 {[%clk 0:00:11]} 38. Bxh5 {[%clk 0:00:01]}  Qf2 {[%clk 0:00:07]} 39. Bf3 {[%clk 0:00:02]}  Qg3 {[%clk 0:00:07]} 40. h4 {[%clk 0:00:02]}  Qf4 {[%clk 0:00:07]} 41. h5 {[%clk 0:00:01]}  Qxe4+ {[%clk 0:00:07]} 42. Bxe4 {[%clk 0:00:02]}  Kh6 {[%clk 0:00:08]} 43. hxg6 {[%clk 0:00:03]}  Kg5 {[%clk 0:00:08]} 44. Rf1 {[%clk 0:00:03]}  Bf6 {[%clk 0:00:08]} 45. Kc2 {[%clk 0:00:01]}  b5 {[%clk 0:00:08]} 46. Kd3 {[%clk 0:00:02]}  b4 {[%clk 0:00:08]} 47. Rg1+ {[%clk 0:00:02]}  Kh6 {[%clk 0:00:08]} 48. Rf1 {[%clk 0:00:02]}  Kg7 {[%clk 0:00:08]} 49. Rh1 {[%clk 0:00:02]}  Bg5 {[%clk 0:00:09]} 50. Rh7+ {[%clk 0:00:03]}  Kg8 {[%clk 0:00:09]} 51. Rxb7 {[%clk 0:00:03]}  Bf6 {[%clk 0:00:08]} 52. Kc4 {[%clk 0:00:01]}  b3 {[%clk 0:00:08]} 53. Kc5 {[%clk 0:00:02]}  Rd8 {[%clk 0:00:07]} 54. d6 {[%clk 0:00:02]}  Bg5 {[%clk 0:00:07]} 55. Kd5 {[%clk 0:00:02]}  Bf6 {[%clk 0:00:07]} 56. Ke6 {[%clk 0:00:03]}  Bg7 {[%clk 0:00:08]} 57. d7 {[%clk 0:00:03]}  Bf8 {[%clk 0:00:07]} 58. Rc7 {[%clk 0:00:02]}  Ra8 {[%clk 0:00:06]} 59. Rc8 {[%clk 0:00:03]}  Ra6+ {[%clk 0:00:06]} 60. Kf5 {[%clk 0:00:03]}  Kg7 {[%clk 0:00:05]} 61. d8=Q {[%clk 0:00:03]}  Rf6+ {[%clk 0:00:06]} 62. Qxf6+ {[%clk 0:00:03]} 1-0


[Site "https://www.chess.com"]

[Event "Titled Tuesday Blitz April 11 Early 2023"]
[White "Gatterer, Florian"]
[Black "Yuan, Qingyu"]
[WhiteFideId "811688"]
[BlackFideId "8609772"]
[WhiteElo "2221"]
[BlackElo "2359"]
[Result "1/2-1/2"]
[Round "02"]
[TimeControl "180+2"]
[Date "2023.04.11"]
[WhiteClock "0:00:10"]
[BlackClock "0:00:21"]

1. c4 {[%clk 0:03:00]}  g6 {[%clk 0:02:57]} 2. g3 {[%clk 0:02:58]}  Bg7 {[%clk 0:02:58]} 3. Bg2 {[%clk 0:02:59]}  e5 {[%clk 0:02:58]} 4. Nc3 {[%clk 0:02:58]}  Ne7 {[%clk 0:02:58]} 5. e4 {[%clk 0:02:57]}  Nbc6 {[%clk 0:02:58]} 6. Nge2 {[%clk 0:02:57]}  O-O {[%clk 0:02:58]} 7. d3 {[%clk 0:02:56]}  d6 {[%clk 0:02:58]} 8. O-O {[%clk 0:02:56]}  Nd4 {[%clk 0:02:58]} 9. Nxd4 {[%clk 0:02:54]}  exd4 {[%clk 0:02:58]} 10. Ne2 {[%clk 0:02:54]}  c6 {[%clk 0:02:51]} 11. f4 {[%clk 0:02:53]}  f5 {[%clk 0:02:52]} 12. Kh1 {[%clk 0:02:32]}  Kh8 {[%clk 0:02:50]} 13. Bd2 {[%clk 0:02:31]}  fxe4 {[%clk 0:02:41]} 14. Bxe4 {[%clk 0:02:27]}  d5 {[%clk 0:02:36]} 15. cxd5 {[%clk 0:02:24]}  Nxd5 {[%clk 0:02:37]} 16. Rb1 {[%clk 0:02:08]}  Bh3 {[%clk 0:02:25]} 17. Bg2 {[%clk 0:02:08]}  Bg4 {[%clk 0:02:24]} 18. Bf3 {[%clk 0:02:07]}  Bh3 {[%clk 0:02:17]} 19. Bg2 {[%clk 0:02:07]}  Qd7 {[%clk 0:02:17]} 20. Ng1 {[%clk 0:02:06]}  Bf5 {[%clk 0:02:10]} 21. Be4 {[%clk 0:01:58]}  Rae8 {[%clk 0:02:10]} 22. Re1 {[%clk 0:01:57]}  Nf6 {[%clk 0:01:47]} 23. Bxf5 {[%clk 0:01:51]}  Qxf5 {[%clk 0:01:42]} 24. Qf3 {[%clk 0:01:51]}  Re6 {[%clk 0:01:31]} 25. Rxe6 {[%clk 0:01:46]}  Qxe6 {[%clk 0:01:32]} 26. b3 {[%clk 0:01:47]}  Re8 {[%clk 0:01:28]} 27. Re1 {[%clk 0:01:45]}  Qd7 {[%clk 0:01:28]} 28. Rxe8+ {[%clk 0:01:38]}  Qxe8 {[%clk 0:01:29]} 29. Qe2 {[%clk 0:01:35]}  Qd7 {[%clk 0:01:27]} 30. Qf3 {[%clk 0:01:35]}  h5 {[%clk 0:01:26]} 31. h3 {[%clk 0:01:34]}  Qe6 {[%clk 0:01:20]} 32. Kg2 {[%clk 0:01:32]}  Kg8 {[%clk 0:01:18]} 33. Ne2 {[%clk 0:01:25]}  Nd5 {[%clk 0:01:17]} 34. Qe4 {[%clk 0:01:25]}  Kf7 {[%clk 0:01:08]} 35. Qxe6+ {[%clk 0:01:14]}  Kxe6 {[%clk 0:01:09]} 36. Kf3 {[%clk 0:01:14]}  c5 {[%clk 0:01:08]} 37. g4 {[%clk 0:01:13]}  hxg4+ {[%clk 0:01:09]} 38. hxg4 {[%clk 0:01:12]}  Bf8 {[%clk 0:01:08]} 39. Ke4 {[%clk 0:01:07]}  Nf6+ {[%clk 0:01:06]} 40. Kf3 {[%clk 0:01:07]}  Bd6 {[%clk 0:01:07]} 41. Be1 {[%clk 0:00:57]}  b5 {[%clk 0:01:01]} 42. Bh4 {[%clk 0:00:56]}  Nd5 {[%clk 0:01:01]} 43. Ke4 {[%clk 0:00:52]}  Nc3+ {[%clk 0:00:51]} 44. Nxc3 {[%clk 0:00:52]}  dxc3 {[%clk 0:00:52]} 45. f5+ {[%clk 0:00:52]}  gxf5+ {[%clk 0:00:50]} 46. gxf5+ {[%clk 0:00:52]}  Kf7 {[%clk 0:00:46]} 47. Be1 {[%clk 0:00:44]}  b4 {[%clk 0:00:39]} 48. d4 {[%clk 0:00:24]}  cxd4 {[%clk 0:00:38]} 49. Kxd4 {[%clk 0:00:25]}  Bf4 {[%clk 0:00:39]} 50. Kd3 {[%clk 0:00:21]}  Kf6 {[%clk 0:00:37]} 51. a3 {[%clk 0:00:21]}  bxa3 {[%clk 0:00:25]} 52. Bxc3+ {[%clk 0:00:10]}  Kxf5 {[%clk 0:00:25]} 53. Kc2 {[%clk 0:00:08]}  Bd6 {[%clk 0:00:20]} 54. Kb1 {[%clk 0:00:08]}  Ke4 {[%clk 0:00:20]} 55. Ka2 {[%clk 0:00:08]}  Kd3 {[%clk 0:00:21]} 56. Be1 {[%clk 0:00:07]}  Ke2 {[%clk 0:00:12]} 57. Ba5 {[%clk 0:00:07]}  Kd3 {[%clk 0:00:11]} 58. b4 {[%clk 0:00:07]}  Kc4 {[%clk 0:00:10]} 59. Kxa3 {[%clk 0:00:08]}  a6 {[%clk 0:00:08]} 60. Ka4 {[%clk 0:00:07]}  Be7 {[%clk 0:00:08]} 61. Bb6 {[%clk 0:00:07]}  Bxb4 {[%clk 0:00:08]} 62. Ba7 {[%clk 0:00:07]}  Bc3 {[%clk 0:00:07]} 63. Bb6 {[%clk 0:00:07]}  Kd5 {[%clk 0:00:07]} 64. Ba7 {[%clk 0:00:07]}  Kc6 {[%clk 0:00:08]} 65. Bf2 {[%clk 0:00:08]}  Kb7 {[%clk 0:00:08]} 66. Be3 {[%clk 0:00:08]}  Be5 {[%clk 0:00:08]} 67. Bf2 {[%clk 0:00:08]}  Bf4 {[%clk 0:00:09]} 68. Bd4 {[%clk 0:00:08]}  Bc7 {[%clk 0:00:10]} 69. Be3 {[%clk 0:00:08]}  Bg3 {[%clk 0:00:10]} 70. Bd4 {[%clk 0:00:08]}  Bd6 {[%clk 0:00:11]} 71. Be3 {[%clk 0:00:08]}  Bc7 {[%clk 0:00:11]} 72. Bd4 {[%clk 0:00:08]}  Kc6 {[%clk 0:00:12]} 73. Be3 {[%clk 0:00:09]}  Bb6 {[%clk 0:00:13]} 74. Bxb6 {[%clk 0:00:08]}  Kxb6 {[%clk 0:00:14]} 75. Kb4 {[%clk 0:00:08]}  a5+ {[%clk 0:00:15]} 76. Ka4 {[%clk 0:00:09]}  Ka6 {[%clk 0:00:16]} 77. Ka3 {[%clk 0:00:09]}  Kb5 {[%clk 0:00:17]} 78. Kb3 {[%clk 0:00:09]}  a4+ {[%clk 0:00:18]} 79. Ka3 {[%clk 0:00:10]}  Ka5 {[%clk 0:00:19]} 80. Kb2 {[%clk 0:00:10]}  Kb4 {[%clk 0:00:20]} 81. Ka2 {[%clk 0:00:10]}  Kc4 {[%clk 0:00:20]} 82. Ka3 {[%clk 0:00:10]}  Kc5 {[%clk 0:00:21]} 83. Kxa4 {[%clk 0:00:10]} 1/2-1/2


[Site "https://www.chess.com"]

[Event "Titled Tuesday Blitz April 11 Early 2023"]
[White "Pakleza, Zbigniew"]
[Black "Zhukova, Natalia"]
[WhiteFideId "1119290"]
[BlackFideId "14101513"]
[WhiteElo "2410"]
[BlackElo "2297"]
[Result "0-1"]
[Round "02"]
[TimeControl "180+2"]
[Date "2023.04.11"]
[WhiteClock "0:00:35"]
[BlackClock "0:00:24"]

1. d4 {[%clk 0:03:00]}  Nf6 {[%clk 0:02:59]} 2. Nf3 {[%clk 0:03:00]}  d5 {[%clk 0:02:59]} 3. Bf4 {[%clk 0:03:00]}  e6 {[%clk 0:02:58]} 4. e3 {[%clk 0:03:00]}  c5 {[%clk 0:02:55]} 5. c3 {[%clk 0:03:01]}  Nc6 {[%clk 0:02:56]} 6. Nbd2 {[%clk 0:03:00]}  Be7 {[%clk 0:02:56]} 7. Bd3 {[%clk 0:03:00]}  Nh5 {[%clk 0:02:55]} 8. Be5 {[%clk 0:03:00]}  f6 {[%clk 0:02:54]} 9. Bg3 {[%clk 0:03:00]}  g6 {[%clk 0:02:50]} 10. Bh4 {[%clk 0:02:57]}  e5 {[%clk 0:02:39]} 11. dxe5 {[%clk 0:02:55]}  fxe5 {[%clk 0:02:39]} 12. Bxe7 {[%clk 0:02:56]}  Qxe7 {[%clk 0:02:40]} 13. e4 {[%clk 0:02:45]}  Nf4 {[%clk 0:02:38]} 14. Bf1 {[%clk 0:02:45]}  d4 {[%clk 0:02:13]} 15. g3 {[%clk 0:02:37]}  Nh3 {[%clk 0:02:13]} 16. Qb3 {[%clk 0:02:15]}  Bg4 {[%clk 0:01:46]} 17. Ng1 {[%clk 0:01:48]}  Nxg1 {[%clk 0:01:19]} 18. Rxg1 {[%clk 0:01:49]}  Be6 {[%clk 0:01:18]} 19. Bc4 {[%clk 0:01:46]}  Bxc4 {[%clk 0:01:15]} 20. Nxc4 {[%clk 0:01:46]}  O-O-O {[%clk 0:01:06]} 21. O-O-O {[%clk 0:01:44]}  Rhf8 {[%clk 0:01:06]} 22. Rgf1 {[%clk 0:01:40]}  Rf3 {[%clk 0:00:55]} 23. Nd2 {[%clk 0:01:37]}  Rd3 {[%clk 0:00:48]} 24. f4 {[%clk 0:01:11]}  dxc3 {[%clk 0:00:46]} 25. bxc3 {[%clk 0:01:12]}  Nd4 {[%clk 0:00:38]} 26. Qa4 {[%clk 0:00:44]}  Ne2+ {[%clk 0:00:38]} 27. Kc2 {[%clk 0:00:44]}  Nxc3 {[%clk 0:00:38]} 28. Qxa7 {[%clk 0:00:44]}  Nxd1 {[%clk 0:00:36]} 29. Rxd1 {[%clk 0:00:45]}  exf4 {[%clk 0:00:32]} 30. gxf4 {[%clk 0:00:41]}  Rxd2+ {[%clk 0:00:25]} 31. Rxd2 {[%clk 0:00:34]}  Qxe4+ {[%clk 0:00:25]} 32. Kb3 {[%clk 0:00:35]}  Qb4+ {[%clk 0:00:24]} 0-1


[Site "https://www.chess.com"]

[Event "Titled Tuesday Blitz April 11 Early 2023"]
[White "HSH1987"]
[Black "Shukhman, Anna"]
[BlackFideId "54180058"]
[WhiteElo "2689"]
[BlackElo "2125"]
[Result "1/2-1/2"]
[Round "02"]
[TimeControl "180+2"]
[Date "2023.04.11"]
[WhiteClock "0:00:05"]
[BlackClock "0:00:13"]

1. e4 {[%clk 0:03:00]}  Nf6 {[%clk 0:02:59]} 2. e5 {[%clk 0:03:00]}  Nd5 {[%clk 0:02:59]} 3. d4 {[%clk 0:03:00]}  d6 {[%clk 0:02:59]} 4. Nf3 {[%clk 0:03:00]}  g6 {[%clk 0:02:58]} 5. Be2 {[%clk 0:02:56]}  Bg7 {[%clk 0:02:57]} 6. exd6 {[%clk 0:02:56]}  cxd6 {[%clk 0:02:56]} 7. O-O {[%clk 0:02:56]}  O-O {[%clk 0:02:56]} 8. c4 {[%clk 0:02:56]}  Nb6 {[%clk 0:02:55]} 9. Nc3 {[%clk 0:02:55]}  Bf5 {[%clk 0:02:53]} 10. d5 {[%clk 0:02:47]}  Qc8 {[%clk 0:02:38]} 11. Bg5 {[%clk 0:02:29]}  f6 {[%clk 0:02:27]} 12. Be3 {[%clk 0:02:12]}  Nxc4 {[%clk 0:02:25]} 13. Bxc4 {[%clk 0:02:13]}  Qxc4 {[%clk 0:02:24]} 14. Nd4 {[%clk 0:02:13]}  Bd7 {[%clk 0:02:14]} 15. Rc1 {[%clk 0:02:09]}  Qb4 {[%clk 0:02:13]} 16. Qd2 {[%clk 0:02:00]}  Na6 {[%clk 0:02:10]} 17. Rfe1 {[%clk 0:01:55]}  Rac8 {[%clk 0:02:03]} 18. a3 {[%clk 0:01:52]}  Qa5 {[%clk 0:02:01]} 19. Bh6 {[%clk 0:01:51]}  Qd8 {[%clk 0:01:56]} 20. b4 {[%clk 0:01:46]}  Nc7 {[%clk 0:01:45]} 21. h4 {[%clk 0:01:37]}  Ne8 {[%clk 0:01:29]} 22. Bxg7 {[%clk 0:01:24]}  Nxg7 {[%clk 0:01:28]} 23. Re3 {[%clk 0:01:20]}  Nf5 {[%clk 0:01:24]} 24. Nxf5 {[%clk 0:01:20]}  Bxf5 {[%clk 0:01:25]} 25. Rce1 {[%clk 0:01:20]}  Rc7 {[%clk 0:01:21]} 26. Nb5 {[%clk 0:01:19]}  Rd7 {[%clk 0:01:20]} 27. Nd4 {[%clk 0:01:19]}  Rc7 {[%clk 0:01:16]} 28. Nxf5 {[%clk 0:01:07]}  gxf5 {[%clk 0:01:17]} 29. Rg3+ {[%clk 0:01:05]}  Kh8 {[%clk 0:01:17]} 30. Qf4 {[%clk 0:01:01]}  Qc8 {[%clk 0:01:08]} 31. Re6 {[%clk 0:00:54]}  Rg8 {[%clk 0:00:51]} 32. Qxf5 {[%clk 0:00:45]}  Rxg3 {[%clk 0:00:49]} 33. fxg3 {[%clk 0:00:46]}  Qg8 {[%clk 0:00:47]} 34. Kh2 {[%clk 0:00:41]}  Qg6 {[%clk 0:00:37]} 35. Qf4 {[%clk 0:00:39]}  Kg7 {[%clk 0:00:35]} 36. Qe3 {[%clk 0:00:37]}  Kf7 {[%clk 0:00:34]} 37. Qxa7 {[%clk 0:00:33]}  Rc3 {[%clk 0:00:27]} 38. Re3 {[%clk 0:00:30]}  Rxe3 {[%clk 0:00:25]} 39. Qxe3 {[%clk 0:00:31]}  Qf5 {[%clk 0:00:23]} 40. Qf3 {[%clk 0:00:29]}  Qc2 {[%clk 0:00:22]} 41. g4 {[%clk 0:00:24]}  b5 {[%clk 0:00:21]} 42. h5 {[%clk 0:00:23]}  Kg7 {[%clk 0:00:18]} 43. Kh3 {[%clk 0:00:19]}  Qb2 {[%clk 0:00:18]} 44. Kh4 {[%clk 0:00:15]}  Qd4 {[%clk 0:00:17]} 45. Qf5 {[%clk 0:00:13]}  Qd1 {[%clk 0:00:15]} 46. Qe4 {[%clk 0:00:10]}  Kf8 {[%clk 0:00:13]} 47. Kh3 {[%clk 0:00:08]}  Qb3+ {[%clk 0:00:12]} 48. Kh2 {[%clk 0:00:07]}  Qd1 {[%clk 0:00:13]} 49. Qxh7 {[%clk 0:00:04]}  Qxd5 {[%clk 0:00:13]} 50. Qg6 {[%clk 0:00:04]}  Qe5+ {[%clk 0:00:12]} 51. Kh3 {[%clk 0:00:04]}  Qe3+ {[%clk 0:00:13]} 52. g3 {[%clk 0:00:04]}  Qf2 {[%clk 0:00:13]} 53. h6 {[%clk 0:00:03]}  Qf1+ {[%clk 0:00:12]} 54. Kh2 {[%clk 0:00:04]}  Qf2+ {[%clk 0:00:13]} 55. Kh3 {[%clk 0:00:04]}  Qf1+ {[%clk 0:00:13]} 56. Kh2 {[%clk 0:00:04]}  Qf2+ {[%clk 0:00:13]} 57. Kh3 {[%clk 0:00:05]} 1/2-1/2


[Site "https://www.chess.com"]